bitfinex-derivatives/quotes_SOLF0:USTF0_20250310
["timestamp","ask_amount","ask_price","bid_price","bid_amount"]
[1741595478298,7.92881532,127.01,126.98,0.05863364]
[1741595480208,7.8732,127.0,126.98,0.05863364]
[1741595480801,7.92861532,127.01,126.98,0.05863364]
[1741595481306,7.8732,127.0,126.98,0.05863364]
[1741595481901,0.05601532,127.01,126.98,0.05863364]
[1741595483216,7.8736,126.99,126.98,0.05863364]
[1741595483412,0.05601532,127.01,126.91,4.2315]
[1741595483706,1.96865217,127.0,126.91,4.2315]
[1741595483909,1.96865217,126.99,126.91,9.9853]
[1741595484110,6.07625096,127.0,126.88,2.1062]
[1741595484111,1.96886269,126.98,126.88,2.1062]
[1741595484306,1.96886269,126.97,126.88,2.1062]
[1741595484498,0.05473005,126.94,126.92,0.05626385]
[1741595484902,7.8774,126.93,126.92,0.05626385]
[1741595485404,7.8786,126.91,126.86,1.9795]
[1741595485901,2.0947,126.97,126.88,7.8801]
[1741595486098,1.96947336,126.96,126.88,7.8801]
[1741595486303,1.96947336,126.95,126.87,7.8806]
[1741595486513,0.06031508,126.92,126.9,0.05984205]
[1741595486810,7.8774,126.93,126.9,0.05984205]
[1741595487007,0.05954681,126.92,126.9,0.05984205]
[1741595487208,2.0947,126.97,126.9,0.05984205]
[1741595487511,0.05979901,126.92,126.9,0.05984205]
[1741595487707,6.08689066,126.96,126.9,0.05984205]
[1741595488011,0.05259684,126.92,126.9,0.05984205]
[1741595488213,0.05259684,126.92,126.79,207.7715]
[1741595488405,6.08689066,126.95,126.8,7.62353407]
[1741595488605,7.8793,126.9,126.86,7.8812]
[1741595489010,8.14789066,126.94,126.8,7.54877182]
[1741595489207,7.879,126.91,126.86,7.8811]
[1741595489407,0.05192041,126.88,126.86,0.05343107]
[1741595489706,0.05192041,126.88,126.8,198.1771]
[1741595489707,7.881,126.88,126.83,7.8834]
[1741595489911,7.93094833,126.88,126.86,0.05825768]
[1741595490316,0.04994833,126.88,126.86,0.05825768]
[1741595490616,7.8811,126.87,126.86,0.05825768]
[1741595492116,0.04994833,126.88,126.8,4.1091]
[1741595492313,2.0675,126.91,126.8,2.0455]
[1741595492513,6.76687816,126.9,126.8,9.9309]
[1741595492820,1.97069139,126.89,126.8,2.0455]
[1741595493114,6.08072878,126.89,126.8,2.0455]
[1741595493316,7.93950149,126.86,126.83,0.05889733]
[1741595493505,0.05740149,126.86,126.84,7.8825]
[1741595493705,0.05740149,126.86,126.83,0.05889733]
[1741595494219,1.963,126.92,126.83,0.05889733]
[1741595494412,9.8413,126.92,126.82,1.44665281]
[1741595494618,9.8413,126.92,126.86,7.8811]
[1741595495318,0.0576963,126.9,126.88,0.05896353]
[1741595497820,0.0576963,126.9,126.81,196.0442]
[1741595498013,0.0576963,126.9,126.82,1.44654294]
[1741595498221,7.8777,126.93,126.88,7.8803]
[1741595498419,7.8777,126.93,126.81,196.0442]
[1741595498723,173.24,126.94,126.91,7.8782]
[1741595498923,173.24,126.94,126.86,0.05551765]
[1741595499221,2.1262,127.0,126.86,192.0]
[1741595499423,2.1262,127.0,126.87,7.44603401]
[1741595499621,2.1262,127.0,126.88,1.44593401]
[1741595499821,7.8727,127.01,126.88,1.44593401]
[1741595500022,173.3,127.02,126.88,1.44593401]
[1741595500217,0.05416557,126.96,126.93,0.05813372]
[1741595500525,181.1721,127.02,126.88,193.44593401]
[1741595500728,0.05558376,126.96,126.93,0.05538295]
[1741595502116,0.05558376,126.96,126.88,1.44599918]
[1741595502323,365.3,127.02,126.87,6.0001]
[1741595502523,6.76623751,127.01,126.87,6.0001]
[1741595502715,6.76623751,127.0,126.87,6.0001]
[1741595502915,6.76623751,126.99,126.87,6.0001]
[1741595503116,8.73793751,126.98,126.87,6.0001]
[1741595503421,0.05791755,126.94,126.92,0.05896699]
[1741595504615,0.05791755,126.94,126.88,1.44588994]
[1741595504823,7.8797,126.9,126.84,199.8827]
[1741595505019,2.0282,126.93,126.85,1.44626949]
[1741595505424,2.0282,126.93,126.81,1.44626949]
[1741595505625,7.8789,126.91,126.85,7.882]
[1741595505821,0.04989647,126.88,126.86,1.44623258]
[1741595506027,2.0282,126.93,126.87,3.47883258]
[1741595506222,4.1449,126.97,126.87,2.0326]
[1741595506623,4.1449,126.97,126.88,1.44604583]
[1741595506830,4.1449,126.97,126.88,9.32654583]
[1741595506831,7.8772,126.94,126.88,9.32654583]
[1741595507023,7.8772,126.94,126.88,7.8805]
[1741595507226,4.1449,126.97,126.87,2.0326]
[1741595507428,2.0903,126.96,126.88,1.44599039]
[1741595507629,0.05836969,126.93,126.91,0.05136038]
[1741595508129,7.878,126.92,126.91,0.05136038]
[1741595508923,7.93606969,126.93,126.91,0.05136038]
[1741595509121,0.05836969,126.93,126.91,0.05136038]
[1741595509321,0.05836969,126.93,126.85,7.8823]
[1741595509622,2.0903,126.96,126.81,2.0849]
[1741595509931,7.8788,126.91,126.82,1.44644989]
[1741595510332,0.05938223,126.88,126.85,0.02116212]
[1741595510535,2.0903,126.96,126.85,0.02116212]
[1741595510536,2.0903,126.96,126.85,1.44644989]
[1741595510734,0.05908904,126.88,126.85,0.02116212]
[1741595510930,2.0903,126.96,126.85,7.8819]
[1741595511130,0.05270298,126.88,126.86,1.44630363]
[1741595511325,7.8784,126.92,126.89,0.02116212]
[1741595511525,7.8784,126.92,126.86,7.8816]
[1741595511736,7.8789,126.91,126.89,0.02116212]
[1741595511929,7.8789,126.91,126.82,1.44629507]
[1741595512130,7.92857554,126.91,126.89,0.02116212]
[1741595512334,7.8789,126.91,126.83,1.44629507]
[1741595512535,7.93449486,126.91,126.89,0.02116212]
[1741595512832,7.93315615,126.91,126.86,7.90276212]
[1741595513033,7.8789,126.91,126.86,7.90276212]
[1741595513334,0.0568017,126.9,126.86,7.90276212]
[1741595513730,0.0568017,126.9,126.86,0.02116212]
[1741595514135,2.0903,126.96,126.86,0.02116212]
[1741595514338,9.9661,126.96,126.9,7.8789]
[1741595514637,9.9661,126.96,126.87,3.944]
[1741595514838,7.8758,126.96,126.91,7.8782]
[1741595515230,0.05342891,126.95,126.92,0.05354407]
[1741595515834,1.9815,127.01,126.92,0.05354407]
[1741595516033,1.9815,127.01,126.95,7.8758]
[1741595516233,7.8734,127.0,126.95,7.8758]
[1741595516939,7.8743,126.98,126.87,195.944]
[1741595517127,7.8743,126.98,126.96,0.05138734]
[1741595517331,7.8743,126.98,126.88,1.44559102]
[1741595517532,7.92833978,126.98,126.96,0.05892074]
[1741595517734,7.8743,126.98,126.96,0.05492248]
[1741595517939,7.92834865,126.98,126.96,0.05492248]
[1741595518141,7.8749,126.97,126.96,0.05492248]
[1741595519035,7.8771,126.94,126.88,192.0]
[1741595519241,1.9996,126.97,126.89,1.44595667]
[1741595519541,1.9996,126.97,126.89,9.32555667]
[1741595519740,1.9996,126.97,126.89,7.8796]
[1741595520340,0.05738285,126.94,126.92,0.05185787]
[1741595520543,7.8774,126.93,126.92,0.05185787]
[1741595520745,0.05738285,126.94,126.92,0.05185787]
[1741595522037,0.05738285,126.94,126.92,7.92925787]
[1741595522837,0.05738285,126.94,126.93,7.8774]
[1741595523033,0.05738285,126.94,126.92,0.05185787]
[1741595524840,1.9561,127.0,126.92,0.05185787]
[1741595525042,1.9561,127.0,126.87,195.944]
[1741595525043,1.9561,127.0,126.89,1.44572019]
[1741595525241,1.9561,127.0,126.9,1.44572019]
[1741595525442,1.9561,127.0,126.91,3.40892019]
[1741595525642,7.8736,126.99,126.94,7.8763]
[1741595526040,0.05488969,126.98,126.95,0.05502445]
[1741595526540,7.92958969,126.98,126.95,0.05502445]
[1741595526739,0.05488969,126.98,126.95,0.05502445]
[1741595527147,3.99488969,126.98,126.88,1.44588871]
[1741595527345,6.77134002,126.97,126.84,146.50466134]
[1741595527539,6.77134002,126.96,126.85,1.44636677]
[1741595527733,8.80074002,126.95,126.84,146.50466134]
[1741595527938,8.83754002,126.94,126.84,129.41092202]
[1741595528135,6.77106853,126.93,126.88,0.05275009]
[1741595528337,7.93679121,126.9,126.88,0.05275009]
[1741595528542,0.05719121,126.9,126.88,0.05275009]
[1741595529041,7.93669121,126.9,126.88,0.05275009]
[1741595529236,0.05719121,126.9,126.89,7.8798]
[1741595529439,0.05719121,126.9,126.88,0.05275009]
[1741595530441,0.05719121,126.9,126.89,7.8798]
[1741595530637,0.05719121,126.9,126.88,0.05275009]
[1741595535540,0.05719121,126.9,126.89,7.8798]
[1741595535751,0.05719121,126.9,126.89,9.9831]
[1741595536649,173.24,126.94,126.9,7.8789]
[1741595536858,173.24,126.94,126.89,4.2314]
[1741595537247,173.24,126.94,126.91,7.8782]
[1741595537454,173.24,126.94,126.89,4.2314]
[1741595537753,0.05459277,126.93,126.91,7.8784]
[1741595538756,0.05459277,126.93,126.9,0.05093478]
[1741595539349,4.1799,126.99,126.9,1.49662542]
[1741595539560,4.1799,126.99,126.9,1.44569064]
[1741595539951,12.0539,126.99,126.94,7.8765]
[1741595540347,12.0539,126.99,126.89,196.2314]
[1741595540348,1.96871903,126.98,126.89,196.2314]
[1741595540558,7.8755,126.96,126.95,0.05749092]
[1741595540761,7.8755,126.96,126.89,196.2314]
[1741595541264,0.05776766,126.94,126.91,7.92909344]
[1741595541557,0.05776766,126.94,126.92,7.878]
[1741595541753,0.05776766,126.94,126.91,0.05059344]
[1741595542157,0.05776766,126.94,126.91,7.92899344]
[1741595542357,0.05776766,126.94,126.91,0.05059344]
[1741595544064,0.05776766,126.94,126.85,193.9909]
[1741595544270,6.7808625,126.93,126.85,1.9909]
[1741595544569,27.7999,126.99,126.84,25.07814797]
[1741595544570,6.08919274,126.92,126.84,25.07814797]
[1741595544764,4.1197,126.92,126.84,25.07814797]
[1741595544963,1.96987375,126.91,126.84,25.07814797]
[1741595545166,4.1197,126.92,126.84,25.07814797]
[1741595545467,0.05415637,126.89,126.86,0.05781056]
[1741595545663,0.05415637,126.89,126.87,7.8811]
[1741595545868,0.05415637,126.89,126.86,0.05781056]
[1741595547067,0.05415637,126.89,126.86,7.93911056]
[1741595547670,7.93405637,126.89,126.86,0.05781056]
[1741595549066,0.05415637,126.89,126.86,0.05781056]
[1741595550269,7.93405637,126.89,126.86,0.05781056]
[1741595550470,0.05415637,126.89,126.86,7.93951056]
[1741595550671,0.05415637,126.89,126.86,0.05781056]
[1741595550871,7.93415637,126.89,126.86,0.05781056]
[1741595551072,0.05415637,126.89,126.86,0.05781056]
[1741595553577,7.8808,126.88,126.86,0.05781056]
[1741595553775,0.05415637,126.89,126.86,0.05781056]
[1741595554175,7.8811,126.87,126.86,0.05781056]
[1741595554477,1.97070135,126.87,126.76,146.54798042]
[1741595554777,2.1016,126.86,126.78,1.44710316]
[1741595555176,7.8824,126.85,126.78,1.44710316]
[1741595555374,2.1016,126.86,126.78,1.44710316]
[1741595555575,0.05984929,126.83,126.8,0.05699172]
[1741595555776,7.8829,126.85,126.81,7.8848]
[1741595556076,0.05160113,126.82,126.81,7.8848]
[1741595556267,0.05160113,126.82,126.8,0.05374803]
[1741595556470,0.05160113,126.82,126.81,7.8848]
[1741595556670,173.28,126.92,126.81,1.44670932]
[1741595556877,173.28,126.92,126.82,4.0299]
[1741595557086,173.28,126.92,126.83,1.44670932]
[1741595557769,0.05926551,126.89,126.86,0.0512788]
[1741595558073,0.05926551,126.89,126.86,7.9328788]
[1741595558380,0.05926551,126.89,126.86,0.0512788]
[1741595558569,7.93946551,126.89,126.86,0.0512788]
[1741595558770,0.05926551,126.89,126.86,0.0512788]
[1741595559977,0.05926551,126.89,126.88,7.8805]
[1741595560979,0.05926551,126.89,126.86,0.0512788]
[1741595561772,0.05926551,126.89,126.79,2.0432]
[1741595561972,7.8811,126.87,126.82,7.8841]
[1741595562173,175.3563,126.92,126.82,7.8841]
[1741595562374,1.97025536,126.91,126.79,4.1466]
[1741595562679,1.97025536,126.9,126.8,1.44680446]
[1741595562906,0.05382273,126.86,126.84,0.05702491]
[1741595563348,7.8809,126.88,126.82,7.8838]
[1741595563553,0.05503215,126.86,126.84,0.05761206]
[1741595563798,175.3563,126.92,126.8,1.44682857]
[1741595564046,0.05913292,126.86,126.84,0.05535629]
[1741595564187,7.8821,126.86,126.81,7.8845]
[1741595564395,7.9342285,126.86,126.84,0.05915115]
[1741595564924,7.8823,126.85,126.84,0.05915115]
[1741595565119,0.0521285,126.86,126.77,2.1031]
[1741595565299,7.8835,126.84,126.79,7.8857]
[1741595565502,173.28,126.92,126.79,7.8857]
[1741595565694,6.76542925,126.91,126.79,7.8857]
[1741595565901,7.884,126.83,126.79,7.8857]
[1741595566301,0.05434736,126.82,126.8,0.02337981]
[1741595568994,0.05434736,126.82,126.8,7.90867981]
[1741595569698,0.05434736,126.82,126.81,7.8848]
[1741595570584,0.05434736,126.82,126.8,7.90857981]
[1741595570785,0.05434736,126.82,126.8,0.02337981]
[1741595570975,0.05434736,126.82,126.8,7.90847981]
[1741595571484,0.05434736,126.82,126.8,0.02337981]
[1741595573300,0.05434736,126.82,126.8,7.90847981]
[1741595574181,0.05434736,126.82,126.8,0.02337981]
[1741595575288,0.05434736,126.82,126.81,7.8848]
[1741595577189,7.8807,126.88,126.81,1.44684812]
[1741595577389,1.9432,126.91,126.76,194.0482]
[1741595577580,7.8802,126.89,126.77,1.37199629]
[1741595577786,7.8802,126.89,126.84,7.8824]
[1741595577987,1.9432,126.91,126.84,7.8824]
[1741595578189,1.9432,126.91,126.78,2.0007]
[1741595578386,7.93585708,126.89,126.86,0.06012475]
[1741595578589,1.9432,126.91,126.84,7.8826]
[1741595578788,0.05812387,126.89,126.86,0.05027337]
[1741595578985,7.881,126.88,126.83,7.8833]
[1741595579186,0.06005048,126.85,126.82,0.05669867]
[1741595579382,1.9432,126.91,126.81,1.44669053]
[1741595579586,0.05207094,126.85,126.82,7.93614082]
[1741595579784,7.8814,126.87,126.82,7.8837]
[1741595579989,0.05609374,126.85,126.82,7.93865415]
[1741595580194,0.05609374,126.85,126.82,0.05495415]
[1741595580789,0.05609374,126.85,126.82,1.99735415]
[1741595581187,0.05609374,126.85,126.82,0.05495415]
[1741595581493,7.93869374,126.85,126.82,0.05495415]
[1741595581996,0.05609374,126.85,126.82,0.05495415]
[1741595582595,0.05609374,126.85,126.84,7.883]
[1741595584185,0.05609374,126.85,126.82,0.05495415]
[1741595585090,7.8835,126.84,126.82,0.05495415]
[1741595585996,0.05609374,126.85,126.76,131.52262202]
[1741595586195,1.9432,126.91,126.77,1.44731481]
[1741595586497,30.43743703,126.9,126.8,7.8854]
[1741595586698,6.77743703,126.89,126.8,7.8854]
[1741595586898,6.77743703,126.88,126.8,7.8854]
[1741595587097,0.05824155,126.86,126.83,7.90597302]
[1741595587396,1.9423,126.88,126.83,0.02277302]
[1741595587597,2.06469846,126.86,126.83,0.02277302]
[1741595588198,7.8827,126.85,126.83,0.02277302]
[1741595588391,2.06469846,126.86,126.83,0.02277302]
[1741595588798,9.94699846,126.86,126.83,0.02277302]
[1741595589095,2.06469846,126.86,126.83,0.02277302]
[1741595589591,7.883,126.84,126.83,0.02277302]
[1741595589793,2.06469846,126.86,126.76,2.1117]
[1741595589997,7.8832,126.84,126.8,7.8848]
[1741595590399,2.0077,126.86,126.76,2.1117]
[1741595590596,7.8825,126.85,126.81,7.8848]
[1741595590798,0.05557219,126.84,126.76,2.1117]
[1741595590993,1.9423,126.88,126.77,1.44692477]
[1741595591201,7.8814,126.87,126.83,7.8836]
[1741595591390,0.05077775,126.84,126.78,2.0309]
[1741595591597,0.05077775,126.84,126.83,7.8836]
[1741595593090,0.05077775,126.84,126.78,194.0309]
[1741595593295,0.05077775,126.84,126.79,1.44671839]
[1741595593691,0.05077775,126.84,126.78,2.0309]
[1741595593895,0.05077775,126.84,126.76,2.1117]
[1741595594105,2.0636,126.91,126.77,1.44715]
[1741595594302,0.04965626,126.81,126.77,9.33395]
[1741595594496,7.8843,126.82,126.78,1.44715]
[1741595594704,0.05968001,126.8,126.78,1.44715]
[1741595594901,2.137,126.9,126.78,1.44715]
[1741595595099,0.0531429,126.8,126.77,1.44715]
[1741595595300,7.8847,126.82,126.76,2.1117]
[1741595595497,0.05283464,126.8,126.77,1.44715726]
[1741595595805,2.0295,126.88,126.77,1.44715726]
[1741595596008,0.05015012,126.8,126.77,1.44715726]
[1741595596206,1.9523,126.86,126.77,1.44715726]
[1741595596505,4.1078814,126.85,126.76,2.1117]
[1741595596693,7.8845,126.82,126.77,7.8868]
[1741595597501,7.8848,126.81,126.76,7.8876]
[1741595597706,2.137,126.85,126.75,1.9741]
[1741595597902,6.78855051,126.84,126.75,1.9741]
[1741595598104,0.05696612,126.8,126.77,7.8878]
[1741595599404,7.94376612,126.8,126.75,7.8891]
[1741595599707,0.05696612,126.8,126.75,7.8891]
[1741595599895,0.05696612,126.8,126.77,7.8879]
[1741595600397,0.05696612,126.8,126.73,2.0245]
[1741595600606,0.05696612,126.8,126.74,1.44762363]
[1741595600802,0.05696612,126.8,126.73,2.0245]
[1741595601001,7.94326612,126.8,126.77,7.888]
[1741595601198,7.94326612,126.8,126.73,2.0245]
[1741595601400,7.94326612,126.8,126.76,7.8883]
[1741595601802,7.94326612,126.8,126.73,2.0245]
[1741595602004,7.94326612,126.8,126.76,7.8883]
[1741595602210,0.05696612,126.8,126.73,2.0245]
[1741595602706,0.05696612,126.8,126.77,7.8878]
[1741595602903,0.05696612,126.8,126.73,2.0245]
[1741595603508,7.94356612,126.8,126.76,7.8884]
[1741595603707,7.94356612,126.8,126.73,2.0245]
[1741595604409,7.8872,126.79,126.73,2.0245]
[1741595604899,7.8897,126.75,126.7,1.9857]
[1741595605100,4.1882,126.78,126.67,2.0905]
[1741595605307,0.05859556,126.74,126.69,7.8926]
[1741595605609,0.05859556,126.74,126.67,2.0905]
[1741595605797,0.05859556,126.74,126.68,1.44820656]
[1741595606205,0.05859556,126.74,126.67,2.0905]
[1741595606505,0.05859556,126.74,126.68,1.44829968]
[1741595606905,0.05859556,126.74,126.7,7.892]
[1741595607109,0.05859556,126.74,126.67,2.0905]
[1741595607312,0.05859556,126.74,126.68,1.44805321]
[1741595608211,0.05859556,126.74,126.71,7.8914]
[1741595608409,0.05859556,126.74,126.67,2.0905]
[1741595608609,0.05859556,126.74,126.68,1.44804263]
[1741595608905,0.05859556,126.74,126.71,7.8913]
[1741595609109,0.05859556,126.74,126.67,2.0905]
[1741595609304,0.05859556,126.74,126.68,1.44804263]
[1741595609505,0.05859556,126.74,126.73,7.8906]
[1741595609910,0.05859556,126.74,126.72,7.8908]
[1741595610103,0.05859556,126.74,126.67,2.0905]
[1741595610412,0.05859556,126.74,126.68,1.44796281]
[1741595610609,173.44,126.8,126.68,192.0]
[1741595610809,173.44,126.8,126.69,1.44785442]
[1741595611718,0.05668558,126.76,126.75,7.8889]
[1741595612015,173.44,126.8,126.68,192.0]
[1741595612316,0.05726064,126.77,126.74,0.05552565]
[1741595613621,0.05726064,126.77,126.75,7.889]
[1741595613813,0.05726064,126.77,126.74,0.05552565]
[1741595614310,0.05726064,126.77,126.75,7.889]
[1741595614811,0.05726064,126.77,126.74,7.94532565]
[1741595615412,0.05726064,126.77,126.74,0.05552565]
[1741595616115,0.05726064,126.77,126.75,7.8888]
[1741595617617,0.05726064,126.77,126.74,0.05552565]
[1741595617817,0.05726064,126.77,126.74,7.94502565]
[1741595618018,0.05726064,126.77,126.74,0.05552565]
[1741595618220,0.05726064,126.77,126.76,7.8887]
[1741595619418,0.05726064,126.77,126.74,0.05552565]
[1741595619725,0.05726064,126.77,126.75,7.8889]
[1741595620127,0.05726064,126.77,126.74,0.05552565]
[1741595623335,0.05726064,126.77,126.75,7.8889]
[1741595623738,0.05726064,126.77,126.74,0.05552565]
[1741595624037,0.05726064,126.77,126.74,7.94522565]
[1741595625143,0.05726064,126.77,126.74,0.05552565]
[1741595625639,7.94576064,126.77,126.74,0.05552565]
[1741595626736,7.8892,126.76,126.74,0.05552565]
[1741595627127,0.05726064,126.77,126.74,0.05552565]
[1741595627339,0.05726064,126.77,126.7,7.8921]
[1741595627538,6.1922,126.79,126.67,2.0905]
[1741595627734,6.1922,126.79,126.68,1.44813049]
[1741595627928,7.8893,126.76,126.71,7.8915]
[1741595628128,173.44,126.8,126.67,2.0905]
[1741595628327,7.8878,126.78,126.68,1.44811837]
[1741595628532,0.05718941,126.75,126.73,7.8901]
[1741595629339,0.05718941,126.75,126.72,7.891]
[1741595629635,173.44,126.8,126.67,2.0905]
[1741595629838,6.77227046,126.79,126.7,7.8922]
[1741595630041,0.06051695,126.75,126.7,7.8922]
[1741595630440,7.8904,126.74,126.7,7.8922]
[1741595630841,0.06051695,126.75,126.71,7.8913]
[1741595631041,2.1437,126.77,126.67,2.0905]
[1741595631341,0.05648067,126.74,126.72,7.8908]
[1741595631540,0.05648067,126.74,126.67,2.0905]
[1741595631839,0.05648067,126.74,126.68,1.44829696]
[1741595633243,173.44,126.8,126.68,193.44829696]
[1741595633432,173.44,126.8,126.7,0.05203185]
[1741595633641,173.44,126.8,126.69,1.44829696]
[1741595633837,173.44,126.8,126.7,2.0593]
[1741595634038,173.44,126.8,126.71,1.44829696]
[1741595634243,7.8873,126.79,126.71,1.44829696]
[1741595634542,0.05880225,126.77,126.74,0.05436283]
[1741595634742,0.05880225,126.77,126.74,7.94406283]
[1741595635345,0.05880225,126.77,126.74,0.05436283]
[1741595635643,0.05880225,126.77,126.74,7.94406283]
[1741595636032,0.05880225,126.77,126.74,0.05436283]
[1741595637036,0.05880225,126.77,126.76,7.8887]
[1741595637445,173.44,126.8,126.75,4.0195]
[1741595637946,173.44,126.8,126.77,7.8876]
[1741595638144,173.44,126.8,126.75,4.0195]
[1741595638342,173.44,126.8,126.76,1.44726196]
[1741595638544,0.05697878,126.79,126.76,3.50401503]
[1741595638739,6.1141,126.88,126.77,1.44726196]
[1741595638938,6.78711674,126.87,126.77,1.44726196]
[1741595639145,6.1141,126.88,126.78,1.4470871]
[1741595639346,13.9959,126.88,126.82,7.8849]
[1741595639547,6.1141,126.88,126.76,2.0019]
[1741595639742,6.1141,126.88,126.77,1.44700174]
[1741595640046,0.05801089,126.83,126.81,0.0568157]
[1741595640245,6.1141,126.88,126.81,0.0568157]
[1741595640443,0.05204064,126.83,126.82,7.8849]
[1741595640639,7.8821,126.87,126.81,0.0568157]
[1741595640944,0.05523927,126.84,126.83,0.06013336]
[1741595641138,0.05523927,126.84,126.81,7.8853]
[1741595641340,7.8829,126.86,126.82,0.05965143]
[1741595641539,0.05230534,126.84,126.82,0.05965143]
[1741595643141,0.05230534,126.84,126.83,7.8844]
[1741595644146,0.05230534,126.84,126.82,7.94435143]
[1741595644740,7.93650534,126.84,126.82,0.05965143]
[1741595644937,0.05230534,126.84,126.82,0.05965143]
[1741595645335,7.93640534,126.84,126.82,0.05965143]
[1741595645545,0.05230534,126.84,126.82,0.05965143]
[1741595647048,7.93640534,126.84,126.82,0.05965143]
[1741595647248,0.05230534,126.84,126.82,0.05965143]
[1741595647851,7.8844,126.83,126.82,0.05965143]
[1741595648449,0.05230534,126.84,126.76,7.8885]
[1741595648639,6.0083,126.88,126.76,7.8885]
[1741595648842,6.77753328,126.87,126.76,7.8885]
[1741595649044,7.8864,126.8,126.76,7.8885]
[1741595649245,6.0083,126.88,126.77,7.8879]
[1741595649445,6.77710162,126.87,126.77,7.8879]
[1741595649646,0.05953847,126.84,126.81,0.06017783]
[1741595649849,0.05953847,126.84,126.75,7.8892]
[1741595649850,6.77678693,126.83,126.75,7.8892]
[1741595650056,6.01200413,126.82,126.75,7.8892]
[1741595650346,4.0406,126.82,126.71,4.0531]
[1741595650548,1.97160098,126.81,126.72,1.44783945]
[1741595650748,1.97172815,126.8,126.72,1.44783945]
[1741595650950,0.05643903,126.78,126.75,0.05105467]
[1741595651247,7.94423903,126.78,126.75,0.05105467]
[1741595651443,0.05643903,126.78,126.75,0.05105467]
[1741595651847,7.8887,126.76,126.75,0.05105467]
[1741595652747,0.05643903,126.78,126.7,7.8922]
[1741595652948,1.97221526,126.77,126.7,7.8922]
[1741595653150,173.44,126.78,126.71,7.8912]
[1741595653351,173.44,126.78,126.69,2.0041]
[1741595653550,173.44,126.78,126.7,1.44814807]
[1741595653950,0.05392799,126.75,126.7,1.44814807]
[1741595654846,0.05392799,126.75,126.71,1.4478362]
[1741595655051,0.05392799,126.75,126.72,1.4478362]
[1741595655358,0.05392799,126.75,126.69,2.0041]
[1741595655553,0.05392799,126.75,126.7,1.44783185]
[1741595655953,0.05392799,126.75,126.73,7.8902]
[1741595656158,0.05392799,126.75,126.69,2.0041]
[1741595656456,0.05392799,126.75,126.7,1.44779165]
[1741595657656,0.05392799,126.75,126.72,7.8909]
[1741595657963,0.05392799,126.75,126.69,2.0041]
[1741595658160,0.05392799,126.75,126.7,1.44785863]
[1741595658366,7.94362799,126.75,126.71,1.44795071]
[1741595658558,7.94362799,126.75,126.69,2.0041]
[1741595658559,0.05392799,126.75,126.69,2.0041]
[1741595658766,0.05392799,126.75,126.7,1.44806983]
[1741595658959,0.05392799,126.75,126.69,2.0041]
[1741595659357,7.8906,126.74,126.69,9.8972]
[1741595659860,0.05392799,126.75,126.7,7.892]
[1741595660065,0.05392799,126.75,126.69,2.0041]
[1741595660262,7.94362799,126.75,126.69,9.8968]
[1741595660963,0.05392799,126.75,126.69,2.0041]
[1741595661666,0.05392799,126.75,126.73,7.8903]
[1741595661865,0.05392799,126.75,126.69,2.0041]
[1741595662067,0.05392799,126.75,126.74,7.89]
[1741595662567,0.05392799,126.75,126.69,2.0041]
[1741595662868,0.05392799,126.75,126.73,7.8902]
[1741595663066,0.05392799,126.75,126.69,2.0041]
[1741595663366,0.05392799,126.75,126.74,7.89]
[1741595663566,0.05392799,126.75,126.69,194.0041]
[1741595663768,0.05392799,126.75,126.7,1.44785275]
[1741595664163,0.05392799,126.75,126.74,7.89]
[1741595665366,0.05392799,126.75,126.73,7.8903]
[1741595665665,0.05392799,126.75,126.69,2.0041]
[1741595665865,0.05392799,126.75,126.72,7.8912]
[1741595666460,0.05392799,126.75,126.69,2.0041]
[1741595666664,0.05392799,126.75,126.7,1.44802793]
[1741595667058,0.05392799,126.75,126.72,7.8907]
[1741595667658,0.05392799,126.75,126.72,7.8911]
[1741595667865,0.05392799,126.75,126.69,2.0041]
[1741595668067,0.05392799,126.75,126.7,1.44806475]
[1741595668369,0.05392799,126.75,126.73,7.8902]
[1741595669070,2.799e-05,126.75,126.74,7.89]
[1741595669262,2.799e-05,126.75,126.74,9.3375773]
[1741595669464,2.799e-05,126.75,126.74,13.2775773]
[1741595670868,2.799e-05,126.75,126.74,19.2549773]
[1741595671065,2.799e-05,126.75,126.74,19.25469434]
[1741595671266,2.799e-05,126.75,126.74,15.31469434]
[1741595672662,2.799e-05,126.75,126.74,13.8674]
[1741595672870,2.799e-05,126.75,126.74,15.31493708]
[1741595673065,2.799e-05,126.75,126.74,19.25493708]
[1741595674771,2.799e-05,126.75,126.74,15.31493708]